{"text_format":"3","workbook":"xlsx","n_sheets":1,"sheets":["Zestawienie zysków i strat"],"not_rendered":{"defined_names":2},"read":"whole","date_system":"1900"}

{"sheet":"Zestawienie zysków i strat","index":0,"n_rows":60,"n_cols":10,"rows_kept":60,"merged":[[9,1,9,9],[16,1,16,9],[24,1,24,9],[38,1,38,9],[43,1,43,9],[56,1,56,9]]}
[null,"Zestawienie zysków i strat"]
[]
[{"$nulls":3},"OKRES POPRZEDNI","BUDŻET","OKRES BIEŻĄCY",null,"OKRES BIEŻĄCY JAKO % SPRZEDAŻY","ZMIANA PROCENTOWA WZGLĘDEM OKRESU POPRZEDNIEGO","ZMIANA PROCENTOWA WZGLĘDEM BUDŻETU"]
[null,"Przychód ze sprzedaży"]
[null,"Produkt/usługa 1",null,40,50,45,null,{"$f":"IFERROR(Przychód_ze_sprzedaży[[#This Row],[Okres bieżący]]/SUBTOTAL(109,Przychód_ze_sprzedaży[Okres bieżący]),0)","v":{"v":1,"d":"100.0%"}},{"$f":"IFERROR(Przychód_ze_sprzedaży[[#This Row],[Okres bieżący]]/Przychód_ze_sprzedaży[[#This Row],[Okres poprzedni]]-1,0)","v":{"v":0.125,"d":"12.5%"}},{"$f":"IFERROR(Przychód_ze_sprzedaży[[#This Row],[Okres bieżący]]/Przychód_ze_sprzedaży[[#This Row],[Budżet]]-1,0)","v":{"v":-0.09999999999999998,"d":"-10.0%"}}]
[null,"Produkt/usługa 2",{"$nulls":5},{"$f":"IFERROR(Przychód_ze_sprzedaży[[#This Row],[Okres bieżący]]/SUBTOTAL(109,Przychód_ze_sprzedaży[Okres bieżący]),0)","v":0},{"$f":"IFERROR(Przychód_ze_sprzedaży[[#This Row],[Okres bieżący]]/Przychód_ze_sprzedaży[[#This Row],[Okres poprzedni]]-1,0)","v":0},{"$f":"IFERROR(Przychód_ze_sprzedaży[[#This Row],[Okres bieżący]]/Przychód_ze_sprzedaży[[#This Row],[Budżet]]-1,0)","v":0}]
[null,"Produkt/usługa 3",{"$nulls":5},{"$f":"IFERROR(Przychód_ze_sprzedaży[[#This Row],[Okres bieżący]]/SUBTOTAL(109,Przychód_ze_sprzedaży[Okres bieżący]),0)","v":0},{"$f":"IFERROR(Przychód_ze_sprzedaży[[#This Row],[Okres bieżący]]/Przychód_ze_sprzedaży[[#This Row],[Okres poprzedni]]-1,0)","v":0},{"$f":"IFERROR(Przychód_ze_sprzedaży[[#This Row],[Okres bieżący]]/Przychód_ze_sprzedaży[[#This Row],[Budżet]]-1,0)","v":0}]
[null,"Produkt/usługa 4",{"$nulls":5},{"$f":"IFERROR(Przychód_ze_sprzedaży[[#This Row],[Okres bieżący]]/SUBTOTAL(109,Przychód_ze_sprzedaży[Okres bieżący]),0)","v":0},{"$f":"IFERROR(Przychód_ze_sprzedaży[[#This Row],[Okres bieżący]]/Przychód_ze_sprzedaży[[#This Row],[Okres poprzedni]]-1,0)","v":0},{"$f":"IFERROR(Przychód_ze_sprzedaży[[#This Row],[Okres bieżący]]/Przychód_ze_sprzedaży[[#This Row],[Budżet]]-1,0)","v":0}]
[null,"Suma",null,{"$f":"SUBTOTAL(109,Przychód_ze_sprzedaży[Okres poprzedni])","v":40},{"$f":"SUBTOTAL(109,Przychód_ze_sprzedaży[Budżet])","v":50},{"$f":"SUBTOTAL(109,Przychód_ze_sprzedaży[Okres bieżący])","v":45},null,{"$f":"IFERROR(Przychód_ze_sprzedaży[[#Totals],[Okres bieżący]]/Przychód_ze_sprzedaży[[#Totals],[Okres bieżący]],0)","v":{"v":1,"d":"100.0%"}},{"$f":"IFERROR(Przychód_ze_sprzedaży[[#Totals],[Okres bieżący]]/Przychód_ze_sprzedaży[[#Totals],[Okres poprzedni]]-1,0)","v":{"v":0.125,"d":"12.5%"}},{"$f":"IFERROR(Przychód_ze_sprzedaży[[#Totals],[Okres bieżący]]/Przychód_ze_sprzedaży[[#Totals],[Budżet]]-1,0)","v":{"v":-0.09999999999999998,"d":"-10.0%"}}]
[]
[null,"Koszty sprzedaży"]
[null,"Produkt/usługa 1",null,null,2,3,null,{"$f":"IFERROR(Koszty_sprzedaży[[#This Row],[Okres bieżący]]/SUBTOTAL(109,Przychód_ze_sprzedaży[Okres bieżący]),0)","v":{"v":0.06666666666666667,"d":"6.7%"}},{"$f":"IFERROR(Koszty_sprzedaży[[#This Row],[Okres bieżący]]/Koszty_sprzedaży[[#This Row],[Okres poprzedni]]-1,0)","v":0},{"$f":"IFERROR(Koszty_sprzedaży[[#This Row],[Okres bieżący]]/Koszty_sprzedaży[[#This Row],[Budżet]]-1,0)","v":{"v":0.5,"d":"50.0%"}}]
[null,"Produkt/usługa 2",null,null,5,3,null,{"$f":"IFERROR(Koszty_sprzedaży[[#This Row],[Okres bieżący]]/SUBTOTAL(109,Przychód_ze_sprzedaży[Okres bieżący]),0)","v":{"v":0.06666666666666667,"d":"6.7%"}},{"$f":"IFERROR(Koszty_sprzedaży[[#This Row],[Okres bieżący]]/Koszty_sprzedaży[[#This Row],[Okres poprzedni]]-1,0)","v":0},{"$f":"IFERROR(Koszty_sprzedaży[[#This Row],[Okres bieżący]]/Koszty_sprzedaży[[#This Row],[Budżet]]-1,0)","v":{"v":-0.4,"d":"-40.0%"}}]
[null,"Produkt/usługa 3",{"$nulls":3},1,null,{"$f":"IFERROR(Koszty_sprzedaży[[#This Row],[Okres bieżący]]/SUBTOTAL(109,Przychód_ze_sprzedaży[Okres bieżący]),0)","v":{"v":0.022222222222222223,"d":"2.2%"}},{"$f":"IFERROR(Koszty_sprzedaży[[#This Row],[Okres bieżący]]/Koszty_sprzedaży[[#This Row],[Okres poprzedni]]-1,0)","v":0},{"$f":"IFERROR(Koszty_sprzedaży[[#This Row],[Okres bieżący]]/Koszty_sprzedaży[[#This Row],[Budżet]]-1,0)","v":0}]
[null,"Produkt/usługa 4",{"$nulls":5},{"$f":"IFERROR(Koszty_sprzedaży[[#This Row],[Okres bieżący]]/SUBTOTAL(109,Przychód_ze_sprzedaży[Okres bieżący]),0)","v":0},{"$f":"IFERROR(Koszty_sprzedaży[[#This Row],[Okres bieżący]]/Koszty_sprzedaży[[#This Row],[Okres poprzedni]]-1,0)","v":0},{"$f":"IFERROR(Koszty_sprzedaży[[#This Row],[Okres bieżący]]/Koszty_sprzedaży[[#This Row],[Budżet]]-1,0)","v":0}]
[null,"Suma",null,{"$f":"SUBTOTAL(109,Koszty_sprzedaży[Okres poprzedni])","v":0},{"$f":"SUBTOTAL(109,Koszty_sprzedaży[Budżet])","v":7},{"$f":"SUBTOTAL(109,Koszty_sprzedaży[Okres bieżący])","v":7},null,{"$f":"IFERROR(Koszty_sprzedaży[[#Totals],[Okres bieżący]]/SUBTOTAL(109,Przychód_ze_sprzedaży[Okres bieżący]),0)","v":{"v":0.15555555555555556,"d":"15.6%"}},{"$f":"IFERROR(Koszty_sprzedaży[[#Totals],[Okres bieżący]]/Koszty_sprzedaży[[#Totals],[Okres poprzedni]]-1,0)","v":0},{"$f":"IFERROR(Koszty_sprzedaży[[#Totals],[Okres bieżący]]/Koszty_sprzedaży[[#Totals],[Budżet]]-1,0)","v":0}]
[]
[null,"Zysk brutto",null,{"$f":"SUM(Przychód_ze_sprzedaży[Okres poprzedni])-SUM(Koszty_sprzedaży[Okres poprzedni])","v":40},{"$f":"SUM(Przychód_ze_sprzedaży[Budżet])-SUM(Koszty_sprzedaży[Budżet])","v":43},{"$f":"SUM(Przychód_ze_sprzedaży[Okres bieżący])-SUM(Koszty_sprzedaży[Okres bieżący])","v":38},null,{"$f":"IFERROR(F18/SUBTOTAL(109,Przychód_ze_sprzedaży[Okres bieżący]),0)","v":{"v":0.8444444444444444,"d":"84.4%"}},{"$f":"IFERROR(F18/D18-1,0)","v":{"v":-0.050000000000000044,"d":"-5.0%"}},{"$f":"IFERROR(F18/E18-1,0)","v":{"v":-0.11627906976744184,"d":"-11.6%"}}]
[]
[null,"Wydatki operacyjne: sprzedaż i marketing"]
[null,"Reklama",null,null,22,19,null,{"$f":"IFERROR(Sprzedaż_i_marketing[[#This Row],[Okres bieżący]]/SUBTOTAL(109,Przychód_ze_sprzedaży[Okres bieżący]),0)","v":{"v":0.4222222222222222,"d":"42.2%"}},{"$f":"IFERROR(Sprzedaż_i_marketing[[#This Row],[Okres bieżący]]/Sprzedaż_i_marketing[[#This Row],[Okres poprzedni]]-1,0)","v":0},{"$f":"IFERROR(Sprzedaż_i_marketing[[#This Row],[Okres bieżący]]/Sprzedaż_i_marketing[[#This Row],[Budżet]]-1,0)","v":{"v":-0.13636363636363635,"d":"-13.6%"}}]
[null,"Marketing bezpośredni",{"$nulls":5},{"$f":"IFERROR(Sprzedaż_i_marketing[[#This Row],[Okres bieżący]]/SUBTOTAL(109,Przychód_ze_sprzedaży[Okres bieżący]),0)","v":0},{"$f":"IFERROR(Sprzedaż_i_marketing[[#This Row],[Okres bieżący]]/Sprzedaż_i_marketing[[#This Row],[Okres poprzedni]]-1,0)","v":0},{"$f":"IFERROR(Sprzedaż_i_marketing[[#This Row],[Okres bieżący]]/Sprzedaż_i_marketing[[#This Row],[Budżet]]-1,0)","v":0}]
[null,"Inne wydatki (określ)",{"$nulls":5},{"$f":"IFERROR(Sprzedaż_i_marketing[[#This Row],[Okres bieżący]]/SUBTOTAL(109,Przychód_ze_sprzedaży[Okres bieżący]),0)","v":0},{"$f":"IFERROR(Sprzedaż_i_marketing[[#This Row],[Okres bieżący]]/Sprzedaż_i_marketing[[#This Row],[Okres poprzedni]]-1,0)","v":0},{"$f":"IFERROR(Sprzedaż_i_marketing[[#This Row],[Okres bieżący]]/Sprzedaż_i_marketing[[#This Row],[Budżet]]-1,0)","v":0}]
[null,"Suma",null,{"$f":"SUBTOTAL(109,Sprzedaż_i_marketing[Okres poprzedni])","v":0},{"$f":"SUBTOTAL(109,Sprzedaż_i_marketing[Budżet])","v":22},{"$f":"SUBTOTAL(109,Sprzedaż_i_marketing[Okres bieżący])","v":19},null,{"$f":"IFERROR(Sprzedaż_i_marketing[[#Totals],[Okres bieżący]]/SUBTOTAL(109,Przychód_ze_sprzedaży[Okres bieżący]),0)","v":{"v":0.4222222222222222,"d":"42.2%"}},{"$f":"IFERROR(Sprzedaż_i_marketing[[#Totals],[Okres bieżący]]/Sprzedaż_i_marketing[[#Totals],[Okres poprzedni]]-1,0)","v":0},{"$f":"IFERROR(Sprzedaż_i_marketing[[#Totals],[Okres bieżący]]/Sprzedaż_i_marketing[[#Totals],[Budżet]]-1,0)","v":{"v":-0.13636363636363635,"d":"-13.6%"}}]
[]
[null,"Wydatki operacyjne: ogólne i administracyjne"]
[null,"Pensje i zarobki",null,null,56,51,null,{"$f":"IFERROR(Ogólne_i_administracyjne[[#This Row],[Okres bieżący]]/SUBTOTAL(109,Przychód_ze_sprzedaży[Okres bieżący]),0)","v":{"v":1.1333333333333333,"d":"113.3%"}},{"$f":"IFERROR(Ogólne_i_administracyjne[[#This Row],[Okres bieżący]]/Ogólne_i_administracyjne[[#This Row],[Okres poprzedni]]-1,0)","v":0},{"$f":"IFERROR(Ogólne_i_administracyjne[[#This Row],[Okres bieżący]]/Ogólne_i_administracyjne[[#This Row],[Budżet]]-1,0)","v":{"v":-0.0892857142857143,"d":"-8.9%"}}]
[null,"Usługi zewnętrzne",{"$nulls":5},{"$f":"IFERROR(Ogólne_i_administracyjne[[#This Row],[Okres bieżący]]/SUBTOTAL(109,Przychód_ze_sprzedaży[Okres bieżący]),0)","v":0},{"$f":"IFERROR(Ogólne_i_administracyjne[[#This Row],[Okres bieżący]]/Ogólne_i_administracyjne[[#This Row],[Okres poprzedni]]-1,0)","v":0},{"$f":"IFERROR(Ogólne_i_administracyjne[[#This Row],[Okres bieżący]]/Ogólne_i_administracyjne[[#This Row],[Budżet]]-1,0)","v":0}]
[null,"Zaopatrzenie",{"$nulls":5},{"$f":"IFERROR(Ogólne_i_administracyjne[[#This Row],[Okres bieżący]]/SUBTOTAL(109,Przychód_ze_sprzedaży[Okres bieżący]),0)","v":0},{"$f":"IFERROR(Ogólne_i_administracyjne[[#This Row],[Okres bieżący]]/Ogólne_i_administracyjne[[#This Row],[Okres poprzedni]]-1,0)","v":0},{"$f":"IFERROR(Ogólne_i_administracyjne[[#This Row],[Okres bieżący]]/Ogólne_i_administracyjne[[#This Row],[Budżet]]-1,0)","v":0}]
[null,"Posiłki i rozrywka",{"$nulls":5},{"$f":"IFERROR(Ogólne_i_administracyjne[[#This Row],[Okres bieżący]]/SUBTOTAL(109,Przychód_ze_sprzedaży[Okres bieżący]),0)","v":0},{"$f":"IFERROR(Ogólne_i_administracyjne[[#This Row],[Okres bieżący]]/Ogólne_i_administracyjne[[#This Row],[Okres poprzedni]]-1,0)","v":0},{"$f":"IFERROR(Ogólne_i_administracyjne[[#This Row],[Okres bieżący]]/Ogólne_i_administracyjne[[#This Row],[Budżet]]-1,0)","v":0}]
[null,"Czynsz",{"$nulls":5},{"$f":"IFERROR(Ogólne_i_administracyjne[[#This Row],[Okres bieżący]]/SUBTOTAL(109,Przychód_ze_sprzedaży[Okres bieżący]),0)","v":0},{"$f":"IFERROR(Ogólne_i_administracyjne[[#This Row],[Okres bieżący]]/Ogólne_i_administracyjne[[#This Row],[Okres poprzedni]]-1,0)","v":0},{"$f":"IFERROR(Ogólne_i_administracyjne[[#This Row],[Okres bieżący]]/Ogólne_i_administracyjne[[#This Row],[Budżet]]-1,0)","v":0}]
[null,"Telefon",{"$nulls":5},{"$f":"IFERROR(Ogólne_i_administracyjne[[#This Row],[Okres bieżący]]/SUBTOTAL(109,Przychód_ze_sprzedaży[Okres bieżący]),0)","v":0},{"$f":"IFERROR(Ogólne_i_administracyjne[[#This Row],[Okres bieżący]]/Ogólne_i_administracyjne[[#This Row],[Okres poprzedni]]-1,0)","v":0},{"$f":"IFERROR(Ogólne_i_administracyjne[[#This Row],[Okres bieżący]]/Ogólne_i_administracyjne[[#This Row],[Budżet]]-1,0)","v":0}]
[null,"Opłaty rachunków",{"$nulls":5},{"$f":"IFERROR(Ogólne_i_administracyjne[[#This Row],[Okres bieżący]]/SUBTOTAL(109,Przychód_ze_sprzedaży[Okres bieżący]),0)","v":0},{"$f":"IFERROR(Ogólne_i_administracyjne[[#This Row],[Okres bieżący]]/Ogólne_i_administracyjne[[#This Row],[Okres poprzedni]]-1,0)","v":0},{"$f":"IFERROR(Ogólne_i_administracyjne[[#This Row],[Okres bieżący]]/Ogólne_i_administracyjne[[#This Row],[Budżet]]-1,0)","v":0}]
[null,"Amortyzacja",{"$nulls":5},{"$f":"IFERROR(Ogólne_i_administracyjne[[#This Row],[Okres bieżący]]/SUBTOTAL(109,Przychód_ze_sprzedaży[Okres bieżący]),0)","v":0},{"$f":"IFERROR(Ogólne_i_administracyjne[[#This Row],[Okres bieżący]]/Ogólne_i_administracyjne[[#This Row],[Okres poprzedni]]-1,0)","v":0},{"$f":"IFERROR(Ogólne_i_administracyjne[[#This Row],[Okres bieżący]]/Ogólne_i_administracyjne[[#This Row],[Budżet]]-1,0)","v":0}]
[null,"Ubezpieczenie",{"$nulls":5},{"$f":"IFERROR(Ogólne_i_administracyjne[[#This Row],[Okres bieżący]]/SUBTOTAL(109,Przychód_ze_sprzedaży[Okres bieżący]),0)","v":0},{"$f":"IFERROR(Ogólne_i_administracyjne[[#This Row],[Okres bieżący]]/Ogólne_i_administracyjne[[#This Row],[Okres poprzedni]]-1,0)","v":0},{"$f":"IFERROR(Ogólne_i_administracyjne[[#This Row],[Okres bieżący]]/Ogólne_i_administracyjne[[#This Row],[Budżet]]-1,0)","v":0}]
[null,"Naprawa i konserwacja",{"$nulls":5},{"$f":"IFERROR(Ogólne_i_administracyjne[[#This Row],[Okres bieżący]]/SUBTOTAL(109,Przychód_ze_sprzedaży[Okres bieżący]),0)","v":0},{"$f":"IFERROR(Ogólne_i_administracyjne[[#This Row],[Okres bieżący]]/Ogólne_i_administracyjne[[#This Row],[Okres poprzedni]]-1,0)","v":0},{"$f":"IFERROR(Ogólne_i_administracyjne[[#This Row],[Okres bieżący]]/Ogólne_i_administracyjne[[#This Row],[Budżet]]-1,0)","v":0}]
[null,"Inne wydatki (określ)",{"$nulls":5},{"$f":"IFERROR(Ogólne_i_administracyjne[[#This Row],[Okres bieżący]]/SUBTOTAL(109,Przychód_ze_sprzedaży[Okres bieżący]),0)","v":0},{"$f":"IFERROR(Ogólne_i_administracyjne[[#This Row],[Okres bieżący]]/Ogólne_i_administracyjne[[#This Row],[Okres poprzedni]]-1,0)","v":0},{"$f":"IFERROR(Ogólne_i_administracyjne[[#This Row],[Okres bieżący]]/Ogólne_i_administracyjne[[#This Row],[Budżet]]-1,0)","v":0}]
[null,"Suma",null,{"$f":"SUBTOTAL(109,Ogólne_i_administracyjne[Okres poprzedni])","v":0},{"$f":"SUBTOTAL(109,Ogólne_i_administracyjne[Budżet])","v":56},{"$f":"SUBTOTAL(109,Ogólne_i_administracyjne[Okres bieżący])","v":51},null,{"$f":"IFERROR(Ogólne_i_administracyjne[[#Totals],[Okres bieżący]]/SUBTOTAL(109,Przychód_ze_sprzedaży[Okres bieżący]),0)","v":{"v":1.1333333333333333,"d":"113.3%"}},{"$f":"IFERROR(Ogólne_i_administracyjne[[#Totals],[Okres bieżący]]/Ogólne_i_administracyjne[[#Totals],[Okres poprzedni]]-1,0)","v":0},{"$f":"IFERROR(Ogólne_i_administracyjne[[#Totals],[Okres bieżący]]/Ogólne_i_administracyjne[[#Totals],[Budżet]]-1,0)","v":{"v":-0.0892857142857143,"d":"-8.9%"}}]
[]
[null,"Wydatki operacyjne: inne"]
[null,"Inny wydatek operacyjny 1",null,null,10,null,null,{"$f":"IFERROR(Kategoria_innych_wydatków_operacyjnych[[#This Row],[Okres bieżący]]/SUBTOTAL(109,Przychód_ze_sprzedaży[Okres bieżący]),0)","v":0},{"$f":"IFERROR(Kategoria_innych_wydatków_operacyjnych[[#This Row],[Okres bieżący]]/Kategoria_innych_wydatków_operacyjnych[[#This Row],[Okres poprzedni]]-1,0)","v":0},{"$f":"IFERROR(Kategoria_innych_wydatków_operacyjnych[[#This Row],[Okres bieżący]]/Kategoria_innych_wydatków_operacyjnych[[#This Row],[Budżet]]-1,0)","v":{"v":-1,"d":"-100.0%"}}]
[null,"Inny wydatek operacyjny 2",{"$nulls":5},{"$f":"IFERROR(Kategoria_innych_wydatków_operacyjnych[[#This Row],[Okres bieżący]]/SUBTOTAL(109,Przychód_ze_sprzedaży[Okres bieżący]),0)","v":0},{"$f":"IFERROR(Kategoria_innych_wydatków_operacyjnych[[#This Row],[Okres bieżący]]/Kategoria_innych_wydatków_operacyjnych[[#This Row],[Okres poprzedni]]-1,0)","v":0},{"$f":"IFERROR(Kategoria_innych_wydatków_operacyjnych[[#This Row],[Okres bieżący]]/Kategoria_innych_wydatków_operacyjnych[[#This Row],[Budżet]]-1,0)","v":0}]
[null,"Suma",null,{"$f":"SUBTOTAL(109,Kategoria_innych_wydatków_operacyjnych[Okres poprzedni])","v":0},{"$f":"SUBTOTAL(109,Kategoria_innych_wydatków_operacyjnych[Budżet])","v":10},{"$f":"SUBTOTAL(109,Kategoria_innych_wydatków_operacyjnych[Okres bieżący])","v":0},null,{"$f":"IFERROR(Kategoria_innych_wydatków_operacyjnych[[#Totals],[Okres bieżący]]/SUBTOTAL(109,Przychód_ze_sprzedaży[Okres bieżący]),0)","v":0},{"$f":"IFERROR(Kategoria_innych_wydatków_operacyjnych[[#Totals],[Okres bieżący]]/Kategoria_innych_wydatków_operacyjnych[[#Totals],[Okres poprzedni]]-1,0)","v":0},{"$f":"IFERROR(Kategoria_innych_wydatków_operacyjnych[[#Totals],[Okres bieżący]]/Kategoria_innych_wydatków_operacyjnych[[#Totals],[Budżet]]-1,0)","v":{"v":-1,"d":"-100.0%"}}]
[]
[null,"Suma wydatków operacyjnych",null,{"$f":"SUM(Sprzedaż_i_marketing[Okres poprzedni],Ogólne_i_administracyjne[Okres poprzedni],Kategoria_innych_wydatków_operacyjnych[Okres poprzedni])","v":0},{"$f":"SUM(Sprzedaż_i_marketing[Budżet],Ogólne_i_administracyjne[Budżet],Kategoria_innych_wydatków_operacyjnych[Budżet])","v":88},{"$f":"SUM(Sprzedaż_i_marketing[Okres bieżący],Ogólne_i_administracyjne[Okres bieżący],Kategoria_innych_wydatków_operacyjnych[Okres bieżący])","v":70},null,{"$f":"IFERROR(F45/SUBTOTAL(109,Przychód_ze_sprzedaży[Okres bieżący]),0)","v":{"v":1.5555555555555556,"d":"155.6%"}},{"$f":"IFERROR(F45/D45-1,0)","v":0},{"$f":"IFERROR(F45/E45-1,0)","v":{"v":-0.20454545454545459,"d":"-20.5%"}}]
[]
[null,"Przychód z działalności",null,{"$f":"D18-D45","v":40},{"$f":"E18-E45","v":-45},{"$f":"F18-F45","v":-32},null,{"$f":"IFERROR(F47/SUBTOTAL(109,Przychód_ze_sprzedaży[Okres bieżący]),0)","v":{"v":-0.7111111111111111,"d":"-71.1%"}},{"$f":"IFERROR(IF(D47=F47,0,IF(F47>D47,ABS((F47/D47)-1),IF(AND(F47<D47,D47<0),-((F47/D47)-1),(F47/D47)-1))),0)","v":{"v":-1.8,"d":"-180.0%"}},{"$f":"IFERROR(IF(E47=F47,0,IF(F47>E47,ABS((F47/E47)-1),IF(AND(F47<E47,E47<0),-((F47/E47)-1),(F47/E47)-1))),0)","v":{"v":0.28888888888888886,"d":"28.9%"}}]
[]
[null,"Inne przychody",{"$nulls":5},{"$f":"IFERROR(F49/SUBTOTAL(109,Przychód_ze_sprzedaży[Okres bieżący]),0)","v":0},{"$f":"IFERROR(F49/D49-1,0)","v":0},{"$f":"IFERROR(F49/E49-1,0)","v":0}]
[]
[null,"Podatki"]
[null,"Podatki dochodowe",null,null,32,30,null,{"$f":"IFERROR(Podatki[[#This Row],[Okres bieżący]]/SUBTOTAL(109,Przychód_ze_sprzedaży[Okres bieżący]),0)","v":{"v":0.6666666666666666,"d":"66.7%"}},{"$f":"IFERROR(Podatki[[#This Row],[Okres bieżący]]/Podatki[[#This Row],[Okres poprzedni]]-1,0)","v":0},{"$f":"IFERROR(Podatki[[#This Row],[Okres bieżący]]/Podatki[[#This Row],[Budżet]]-1,0)","v":{"v":-0.0625,"d":"-6.3%"}}]
[null,"Podatki od wynagrodzeń",{"$nulls":5},{"$f":"IFERROR(Podatki[[#This Row],[Okres bieżący]]/SUBTOTAL(109,Przychód_ze_sprzedaży[Okres bieżący]),0)","v":0},{"$f":"IFERROR(Podatki[[#This Row],[Okres bieżący]]/Podatki[[#This Row],[Okres poprzedni]]-1,0)","v":0},{"$f":"IFERROR(Podatki[[#This Row],[Okres bieżący]]/Podatki[[#This Row],[Budżet]]-1,0)","v":0}]
[null,"Podatki od nieruchomości",{"$nulls":5},{"$f":"IFERROR(Podatki[[#This Row],[Okres bieżący]]/SUBTOTAL(109,Przychód_ze_sprzedaży[Okres bieżący]),0)","v":0},{"$f":"IFERROR(Podatki[[#This Row],[Okres bieżący]]/Podatki[[#This Row],[Okres poprzedni]]-1,0)","v":0},{"$f":"IFERROR(Podatki[[#This Row],[Okres bieżący]]/Podatki[[#This Row],[Budżet]]-1,0)","v":0}]
[null,"Inne podatki (określ)",{"$nulls":5},{"$f":"IFERROR(Podatki[[#This Row],[Okres bieżący]]/SUBTOTAL(109,Przychód_ze_sprzedaży[Okres bieżący]),0)","v":0},{"$f":"IFERROR(Podatki[[#This Row],[Okres bieżący]]/Podatki[[#This Row],[Okres poprzedni]]-1,0)","v":0},{"$f":"IFERROR(Podatki[[#This Row],[Okres bieżący]]/Podatki[[#This Row],[Budżet]]-1,0)","v":0}]
[null,"Suma",null,{"$f":"SUBTOTAL(109,Podatki[Okres poprzedni])","v":0},{"$f":"SUBTOTAL(109,Podatki[Budżet])","v":32},{"$f":"SUBTOTAL(109,Podatki[Okres bieżący])","v":30},null,{"$f":"IFERROR(Podatki[[#Totals],[Okres bieżący]]/SUBTOTAL(109,Przychód_ze_sprzedaży[Okres bieżący]),0)","v":{"v":0.6666666666666666,"d":"66.7%"}},{"$f":"IFERROR(Podatki[[#Totals],[Okres bieżący]]/Podatki[[#Totals],[Okres poprzedni]]-1,0)","v":0},{"$f":"IFERROR(Podatki[[#Totals],[Okres bieżący]]/Podatki[[#Totals],[Budżet]]-1,0)","v":{"v":-0.0625,"d":"-6.3%"}}]
[]
[null,"Zysk netto",null,{"$f":"D47+D49-Podatki[[#Totals],[Okres poprzedni]]","v":40},{"$f":"E47+E49-Podatki[[#Totals],[Okres poprzedni]]","v":-45},{"$f":"F47+F49-Podatki[[#Totals],[Okres poprzedni]]","v":-32},null,{"$f":"IFERROR(F58/SUBTOTAL(109,Przychód_ze_sprzedaży[Okres bieżący]),0)","v":{"v":-0.7111111111111111,"d":"-71.1%"}},{"$f":"IFERROR(IF(D58=F58,0,IF(F58>D58,ABS((F58/D58)-1),IF(AND(F58<D58,D58<0),-((F58/D58)-1),(F58/D58)-1))),0)","v":{"v":-1.8,"d":"-180.0%"}},{"$f":"IFERROR(IF(E58=F58,0,IF(F58>E58,ABS((F58/E58)-1),IF(AND(F58<E58,E58<0),-((F58/E58)-1),(F58/E58)-1))),0)","v":{"v":0.28888888888888886,"d":"28.9%"}}]
[null,"Marża brutto",null,{"$f":"D18/SUM(Przychód_ze_sprzedaży[Okres poprzedni])","v":{"v":1,"d":"100.0%"}},{"$f":"E18/SUM(Przychód_ze_sprzedaży[Budżet])","v":{"v":0.86,"d":"86.0%"}},{"$f":"F18/SUM(Przychód_ze_sprzedaży[Okres bieżący])","v":{"v":0.8444444444444444,"d":"84.4%"}}]
[null,"Zwrot ze sprzedaży",null,{"$f":"D58/SUM(Przychód_ze_sprzedaży[Okres poprzedni])","v":{"v":1,"d":"100.0%"}},{"$f":"E58/SUM(Przychód_ze_sprzedaży[Budżet])","v":{"v":-0.9,"d":"-90.0%"}},{"$f":"F58/SUM(Przychód_ze_sprzedaży[Okres bieżący])","v":{"v":-0.7111111111111111,"d":"-71.1%"}}]